[Event "*** SCC Grand Prix: Titled Tuesday Blitz"]
[Site "Chess.com"]
[Date "2020.06.09"]
[Round "6"]
[White "CzechmVIII"]
[Black "Oligan22"]
[Result "0-1"]
[WhiteElo "2176"]
[BlackElo "2408"]
[TimeControl "180+1"]
[EndTime "10:06:50 PDT"]
[Termination "Oligan22 won on time"]

1. e4 {[%clk 0:03:00.9]} 1... c6 {[%clk 0:03:00.3]} 2. d4 {[%clk 0:03:00.2]}
2... d5 {[%clk 0:03:01.2]} 3. e5 {[%clk 0:03:00.5]} 3... Bf5 {[%clk 0:03:00.9]}
4. Nc3 {[%clk 0:03:00.3]} 4... e6 {[%clk 0:02:59.6]} 5. g4 {[%clk 0:03:00.4]}
5... Bg6 {[%clk 0:02:58]} 6. Nge2 {[%clk 0:03:00.5]} 6... c5 {[%clk 0:02:57.5]}
7. h4 {[%clk 0:02:59]} 7... h5 {[%clk 0:02:56.7]} 8. Nf4 {[%clk 0:02:58.2]} 8...
Ne7 {[%clk 0:02:42.9]} 9. Nxg6 {[%clk 0:02:53]} 9... Nxg6 {[%clk 0:02:41.5]} 10.
gxh5 {[%clk 0:02:47.9]} 10... Ne7 {[%clk 0:02:40.9]} 11. dxc5 {[%clk 0:02:37.8]}
11... Nec6 {[%clk 0:02:33.2]} 12. Bf4 {[%clk 0:01:42.2]} 12... Nd7 {[%clk
0:02:21.8]} 13. Nb5 {[%clk 0:01:28.4]} 13... Ndxe5 {[%clk 0:01:58.7]} 14. Nd6+
{[%clk 0:01:13.5]} 14... Bxd6 {[%clk 0:01:54.9]} 15. cxd6 {[%clk 0:01:13.8]}
15... Qxd6 {[%clk 0:01:52.2]} 16. Be2 {[%clk 0:01:00.9]} 16... Nd3+ {[%clk
0:01:28.8]} 17. Qxd3 {[%clk 0:00:55.2]} 17... Qxf4 {[%clk 0:01:29.3]} 18. Qg3
{[%clk 0:00:39.2]} 18... Qxg3 {[%clk 0:01:27.3]} 19. fxg3 {[%clk 0:00:39.3]}
19... Nd4 {[%clk 0:01:26.8]} 20. Bd3 {[%clk 0:00:34.8]} 20... Ke7 {[%clk
0:01:15.7]} 21. O-O-O {[%clk 0:00:30.4]} 21... Rxh5 {[%clk 0:01:11.8]} 22. g4
{[%clk 0:00:27]} 22... Rhh8 {[%clk 0:01:10.9]} 23. h5 {[%clk 0:00:22]} 23... Nf3
{[%clk 0:01:02.3]} 24. Rdf1 {[%clk 0:00:16.8]} 24... Ng5 {[%clk 0:01:02.3]} 25.
Rf2 {[%clk 0:00:14.5]} 25... Rac8 {[%clk 0:01:01.6]} 26. Kd2 {[%clk 0:00:13]}
26... f6 {[%clk 0:00:53.4]} 27. c3 {[%clk 0:00:13.1]} 27... e5 {[%clk
0:00:53.7]} 28. Bf5 {[%clk 0:00:13.3]} 28... Rc4 {[%clk 0:00:52.6]} 29. Ke3
{[%clk 0:00:12]} 29... b5 {[%clk 0:00:39.7]} 30. Rfh2 {[%clk 0:00:11.9]} 30...
b4 {[%clk 0:00:39.2]} 31. cxb4 {[%clk 0:00:11.3]} 31... Rxb4 {[%clk 0:00:39.2]}
32. b3 {[%clk 0:00:11.8]} 32... d4+ {[%clk 0:00:37.5]} 33. Kd3 {[%clk
0:00:08.3]} 33... Kd6 {[%clk 0:00:35.3]} 34. h6 {[%clk 0:00:08.1]} 34... gxh6
{[%clk 0:00:34.8]} 35. Rxh6 {[%clk 0:00:08.4]} 35... Rxh6 {[%clk 0:00:35.6]} 36.
Rxh6 {[%clk 0:00:08.6]} 36... Ke7 {[%clk 0:00:35.6]} 37. Rh8 {[%clk 0:00:08.7]}
37... Rb6 {[%clk 0:00:34.1]} 38. Rc8 {[%clk 0:00:06.2]} 38... Ra6 {[%clk
0:00:34.2]} 39. Rc7+ {[%clk 0:00:06.4]} 39... Kd6 {[%clk 0:00:34.5]} 40. Rc2
{[%clk 0:00:05.3]} 40... Rc6 {[%clk 0:00:31.7]} 41. Rh2 {[%clk 0:00:02.4]} 41...
Rc3+ {[%clk 0:00:31.2]} 42. Ke2 {[%clk 0:00:01.3]} 42... e4 {[%clk 0:00:30]} 0-1

[Event "*** SCC Grand Prix: Titled Tuesday Blitz"]
[Site "Chess.com"]
[Date "2020.06.09"]
[Round "6"]
[White "BaMBoMaTTo"]
[Black "eljanov"]
[Result "0-1"]
[WhiteElo "2639"]
[BlackElo "2822"]
[TimeControl "180+1"]
[EndTime "10:06:51 PDT"]
[Termination "eljanov won by resignation"]

1. e4 {[%clk 0:03:00]} 1... e5 {[%clk 0:02:59]} 2. Nf3 {[%clk 0:03:00.2]} 2...
Nc6 {[%clk 0:02:59]} 3. Bb5 {[%clk 0:03:00.4]} 3... a6 {[%clk 0:02:58.4]} 4. Ba4
{[%clk 0:03:00.8]} 4... Nf6 {[%clk 0:02:58.7]} 5. O-O {[%clk 0:03:01]} 5... Be7
{[%clk 0:02:58.9]} 6. Re1 {[%clk 0:03:01.3]} 6... b5 {[%clk 0:02:58.4]} 7. Bb3
{[%clk 0:03:02]} 7... d6 {[%clk 0:02:59]} 8. c3 {[%clk 0:03:02.2]} 8... O-O
{[%clk 0:02:58.9]} 9. h3 {[%clk 0:03:02.7]} 9... Bb7 {[%clk 0:02:59.4]} 10. d4
{[%clk 0:02:52.2]} 10... Re8 {[%clk 0:02:59.7]} 11. Ng5 {[%clk 0:02:51.9]} 11...
Rf8 {[%clk 0:03:00.1]} 12. Nf3 {[%clk 0:02:51.6]} 12... Nd7 {[%clk 0:02:52.4]}
13. Nbd2 {[%clk 0:02:48.6]} 13... Bf6 {[%clk 0:02:51.4]} 14. Nf1 {[%clk
0:02:48.2]} 14... g6 {[%clk 0:02:34.2]} 15. Ne3 {[%clk 0:02:46.3]} 15... Bg7
{[%clk 0:02:32.2]} 16. a4 {[%clk 0:02:25.4]} 16... Nb6 {[%clk 0:02:22.9]} 17. a5
{[%clk 0:02:18.4]} 17... Nd7 {[%clk 0:02:22.8]} 18. Nd5 {[%clk 0:02:18.6]} 18...
h6 {[%clk 0:02:15.8]} 19. Be3 {[%clk 0:02:15.2]} 19... Nxa5 {[%clk 0:01:57.1]}
20. Rxa5 {[%clk 0:02:01.6]} 20... c6 {[%clk 0:01:57.4]} 21. Ra1 {[%clk
0:01:54.5]} 21... cxd5 {[%clk 0:01:57.4]} 22. exd5 {[%clk 0:01:55.3]} 22... e4
{[%clk 0:01:54.7]} 23. Nd2 {[%clk 0:01:54.8]} 23... f5 {[%clk 0:01:53.7]} 24.
Bf4 {[%clk 0:01:54.2]} 24... Nb6 {[%clk 0:01:48.7]} 25. c4 {[%clk 0:01:47]}
25... Kh7 {[%clk 0:01:17.5]} 26. c5 {[%clk 0:00:59]} 26... dxc5 {[%clk
0:01:14.6]} 27. dxc5 {[%clk 0:00:59.9]} 27... Nxd5 {[%clk 0:01:14.8]} 28. Bd6
{[%clk 0:01:00.2]} 28... Nb4 {[%clk 0:00:59.7]} 29. Nf1 {[%clk 0:00:26.4]} 29...
Nd3 {[%clk 0:00:55.9]} 30. Re2 {[%clk 0:00:26.5]} 30... Qg5 {[%clk 0:00:47.9]}
31. Qd2 {[%clk 0:00:12.4]} 31... Qxd2 {[%clk 0:00:43.2]} 32. Rxd2 {[%clk
0:00:10.6]} 32... Rfd8 {[%clk 0:00:42.2]} 33. Rb1 {[%clk 0:00:10.4]} 33... a5
{[%clk 0:00:34.1]} 34. Be6 {[%clk 0:00:04.2]} 34... a4 {[%clk 0:00:28.7]} 35. b3
{[%clk 0:00:04.6]} 35... a3 {[%clk 0:00:28.3]} 36. Ra2 {[%clk 0:00:05]} 36...
Nb4 {[%clk 0:00:27.5]} 0-1

[Event "*** SCC Grand Prix: Titled Tuesday Blitz"]
[Site "Chess.com"]
[Date "2020.06.09"]
[Round "6"]
[White "DortmundCity"]
[Black "Grandmaster2B"]
[Result "1-0"]
[WhiteElo "2603"]
[BlackElo "2437"]
[TimeControl "180+1"]
[EndTime "10:06:51 PDT"]
[Termination "DortmundCity won by resignation"]

1. e4 {[%clk 0:02:50.5]} 1... c5 {[%clk 0:02:59.4]} 2. Nf3 {[%clk 0:02:37.9]}
2... d6 {[%clk 0:02:59.1]} 3. d4 {[%clk 0:02:38.8]} 3... cxd4 {[%clk 0:03:00]}
4. Nxd4 {[%clk 0:02:39.3]} 4... Nf6 {[%clk 0:03:00.5]} 5. Nc3 {[%clk 0:02:39]}
5... a6 {[%clk 0:03:00.2]} 6. Bg5 {[%clk 0:02:39.2]} 6... e6 {[%clk 0:03:00]} 7.
f4 {[%clk 0:02:38.5]} 7... Be7 {[%clk 0:02:59.9]} 8. Qf3 {[%clk 0:02:38.7]} 8...
Qc7 {[%clk 0:03:00.1]} 9. O-O-O {[%clk 0:02:38.5]} 9... Nbd7 {[%clk 0:03:00.5]}
10. g4 {[%clk 0:02:37.9]} 10... b5 {[%clk 0:02:58.6]} 11. a3 {[%clk 0:02:37.6]}
11... Bb7 {[%clk 0:02:46]} 12. Bxf6 {[%clk 0:02:35.7]} 12... Nxf6 {[%clk
0:02:46.9]} 13. g5 {[%clk 0:02:35.9]} 13... Nd7 {[%clk 0:02:46.2]} 14. h4 {[%clk
0:02:32.5]} 14... O-O {[%clk 0:02:43.5]} 15. h5 {[%clk 0:02:30]} 15... Nc5
{[%clk 0:02:36.7]} 16. g6 {[%clk 0:02:26.9]} 16... Rac8 {[%clk 0:02:19.9]} 17.
f5 {[%clk 0:02:17.2]} 17... e5 {[%clk 0:02:14.3]} 18. h6 {[%clk 0:01:34.1]}
18... Bg5+ {[%clk 0:01:40]} 19. Kb1 {[%clk 0:01:33.6]} 19... Bxh6 {[%clk
0:01:39.9]} 20. Ndxb5 {[%clk 0:01:25.3]} 20... axb5 {[%clk 0:01:36.9]} 21. Nxb5
{[%clk 0:01:24.9]} 21... Bxe4 {[%clk 0:01:32.6]} 22. Qg4 {[%clk 0:01:25.1]}
22... Qb6 {[%clk 0:01:19.2]} 23. Rxh6 {[%clk 0:01:21.1]} 23... gxh6 {[%clk
0:01:01.7]} 24. gxf7+ {[%clk 0:01:13.3]} 24... Kh8 {[%clk 0:00:56.3]} 25. Rxd6
{[%clk 0:01:12.6]} 25... Bxc2+ {[%clk 0:00:45.3]} 26. Kxc2 {[%clk 0:01:13.5]}
26... Ne4+ {[%clk 0:00:43.5]} 27. Kb1 {[%clk 0:01:14.1]} 27... Nxd6 {[%clk
0:00:42.2]} 28. f6 {[%clk 0:01:13.9]} 28... Nf5 {[%clk 0:00:21.4]} 29. Qxf5
{[%clk 0:01:13.9]} 29... Rc7 {[%clk 0:00:18.5]} 30. Nxc7 {[%clk 0:01:10.1]}
30... Qxc7 {[%clk 0:00:16.5]} 31. a4 {[%clk 0:01:07.9]} 31... Qxf7 {[%clk
0:00:15.6]} 32. Bd3 {[%clk 0:01:05]} 32... Rg8 {[%clk 0:00:10]} 33. Qxe5 {[%clk
0:01:02]} 33... Rg1+ {[%clk 0:00:06.2]} 34. Kc2 {[%clk 0:00:59]} 34... Rg2+
{[%clk 0:00:06.2]} 35. Kc3 {[%clk 0:00:52.5]} 35... Rf2 {[%clk 0:00:05.7]} 36.
Qb8+ {[%clk 0:00:46.7]} 36... Qg8 {[%clk 0:00:05.9]} 37. Qxg8+ {[%clk
0:00:46.2]} 37... Kxg8 {[%clk 0:00:06.8]} 38. a5 {[%clk 0:00:41.7]} 38... Rxf6
{[%clk 0:00:03.8]} 39. b4 {[%clk 0:00:42]} 39... h5 {[%clk 0:00:04.2]} 40. a6
{[%clk 0:00:35.8]} 40... h4 {[%clk 0:00:02.2]} 41. b5 {[%clk 0:00:33.5]} 41...
Rf7 {[%clk 0:00:01.2]} 42. Bc4 {[%clk 0:00:30.7]} 42... h3 {[%clk 0:00:01.3]}
43. a7 {[%clk 0:00:30.3]} 43... h2 {[%clk 0:00:01.4]} 44. a8=Q+ {[%clk
0:00:30.4]} 1-0

[Event "*** SCC Grand Prix: Titled Tuesday Blitz"]
[Site "Chess.com"]
[Date "2020.06.09"]
[Round "6"]
[White "crazy_but_lazy"]
[Black "freshfoodcompany"]
[Result "1-0"]
[WhiteElo "2410"]
[BlackElo "2218"]
[TimeControl "180+1"]
[EndTime "10:06:51 PDT"]
[Termination "crazy_but_lazy won by checkmate"]

1. d4 {[%clk 0:03:00.9]} 1... d5 {[%clk 0:02:58.4]} 2. c4 {[%clk 0:02:59]} 2...
e6 {[%clk 0:02:58.6]} 3. Nf3 {[%clk 0:02:56.9]} 3... Nf6 {[%clk 0:02:58]} 4. g3
{[%clk 0:02:55.7]} 4... dxc4 {[%clk 0:02:57.9]} 5. Bg2 {[%clk 0:02:53.7]} 5...
Bd7 {[%clk 0:02:58.1]} 6. Ne5 {[%clk 0:02:30.8]} 6... Bc6 {[%clk 0:02:56.9]} 7.
Nxc6 {[%clk 0:02:28.7]} 7... Nxc6 {[%clk 0:02:56.6]} 8. e3 {[%clk 0:02:24.1]}
8... Qd7 {[%clk 0:02:50]} 9. Nd2 {[%clk 0:02:09.1]} 9... e5 {[%clk 0:02:42.3]}
10. dxe5 {[%clk 0:01:29.6]} 10... Nxe5 {[%clk 0:02:36.9]} 11. O-O {[%clk
0:01:29.8]} 11... c6 {[%clk 0:02:29.9]} 12. Qc2 {[%clk 0:01:24.6]} 12... Qd3
{[%clk 0:02:17]} 13. Qa4 {[%clk 0:01:07.9]} 13... Be7 {[%clk 0:02:08]} 14. Rd1
{[%clk 0:01:04.4]} 14... O-O {[%clk 0:01:48.8]} 15. Nf3 {[%clk 0:00:30.6]} 15...
Nxf3+ {[%clk 0:01:43.3]} 16. Bxf3 {[%clk 0:00:31.5]} 16... Qf5 {[%clk
0:01:40.1]} 17. Kg2 {[%clk 0:00:31.8]} 17... Qc5 {[%clk 0:01:21.2]} 18. Bd2
{[%clk 0:00:28.6]} 18... Rfd8 {[%clk 0:01:18.2]} 19. Rac1 {[%clk 0:00:26.9]}
19... b5 {[%clk 0:01:14.6]} 20. Qc2 {[%clk 0:00:19.3]} 20... Qb6 {[%clk
0:01:10.4]} 21. b3 {[%clk 0:00:19.4]} 21... cxb3 {[%clk 0:01:07.7]} 22. axb3
{[%clk 0:00:19.8]} 22... Rac8 {[%clk 0:01:05.1]} 23. Bc3 {[%clk 0:00:18.8]}
23... Nd5 {[%clk 0:01:01.4]} 24. Bd4 {[%clk 0:00:18.2]} 24... Qb7 {[%clk
0:01:00.2]} 25. Bc5 {[%clk 0:00:14.7]} 25... Bxc5 {[%clk 0:00:59.7]} 26. Qxc5
{[%clk 0:00:15.6]} 26... h6 {[%clk 0:00:52.6]} 27. Rd4 {[%clk 0:00:13.8]} 27...
a5 {[%clk 0:00:45.8]} 28. Rcd1 {[%clk 0:00:10.9]} 28... Re8 {[%clk 0:00:25.1]}
29. e4 {[%clk 0:00:10.4]} 29... Qb6 {[%clk 0:00:20.5]} 30. Rxd5 {[%clk 0:00:07]}
30... Qxc5 {[%clk 0:00:18.9]} 31. Rxc5 {[%clk 0:00:07.4]} 31... Red8 {[%clk
0:00:17.2]} 32. Rdc1 {[%clk 0:00:07.5]} 32... Rd3 {[%clk 0:00:16.2]} 33. e5
{[%clk 0:00:06.1]} 33... Rxb3 {[%clk 0:00:15.6]} 34. Rxc6 {[%clk 0:00:06.3]}
34... Rxc6 {[%clk 0:00:15.2]} 35. Rxc6 {[%clk 0:00:06.3]} 35... a4 {[%clk
0:00:13.9]} 36. Be4 {[%clk 0:00:06.8]} 36... Rb2 {[%clk 0:00:13.5]} 37. Rc8#
{[%clk 0:00:06.9]} 1-0

[Event "*** SCC Grand Prix: Titled Tuesday Blitz"]
[Site "Chess.com"]
[Date "2020.06.09"]
[Round "6"]
[White "FrenchMonster2002"]
[Black "ecwinslow"]
[Result "0-1"]
[WhiteElo "2401"]
[BlackElo "2260"]
[TimeControl "180+1"]
[EndTime "10:06:53 PDT"]
[Termination "ecwinslow won by checkmate"]

1. e4 {[%clk 0:03:00.9]} 1... c5 {[%clk 0:02:58.9]} 2. Nc3 {[%clk 0:03:00.9]}
2... Nc6 {[%clk 0:02:57.8]} 3. Bb5 {[%clk 0:03:00.8]} 3... Nd4 {[%clk
0:02:56.5]} 4. Nf3 {[%clk 0:03:01.5]} 4... e6 {[%clk 0:02:52.4]} 5. O-O {[%clk
0:03:00.6]} 5... Nf6 {[%clk 0:02:45.8]} 6. e5 {[%clk 0:02:38.5]} 6... Nxb5
{[%clk 0:02:44.2]} 7. Nxb5 {[%clk 0:02:36.7]} 7... Nd5 {[%clk 0:02:44]} 8. d4
{[%clk 0:02:26.5]} 8... Qb6 {[%clk 0:02:28.2]} 9. c4 {[%clk 0:02:24.9]} 9... Nc7
{[%clk 0:02:25.6]} 10. Nxc7+ {[%clk 0:02:15.8]} 10... Qxc7 {[%clk 0:02:24.6]}
11. d5 {[%clk 0:02:16.7]} 11... d6 {[%clk 0:02:21.7]} 12. Bf4 {[%clk 0:01:51.6]}
12... dxe5 {[%clk 0:02:04.3]} 13. Bxe5 {[%clk 0:01:52.5]} 13... Bd6 {[%clk
0:01:57.2]} 14. Bxg7 {[%clk 0:01:31.8]} 14... Rg8 {[%clk 0:01:54.7]} 15. Bc3
{[%clk 0:01:29.5]} 15... exd5 {[%clk 0:01:48.8]} 16. Qxd5 {[%clk 0:01:17.5]}
16... Be6 {[%clk 0:01:44.2]} 17. Qe4 {[%clk 0:00:52.7]} 17... O-O-O {[%clk
0:01:41.9]} 18. Rfd1 {[%clk 0:00:35.8]} 18... Rg4 {[%clk 0:01:29.6]} 19. Qe3
{[%clk 0:00:31.5]} 19... Rdg8 {[%clk 0:01:12.7]} 20. g3 {[%clk 0:00:28.1]} 20...
Bxg3 {[%clk 0:00:59.1]} 21. hxg3 {[%clk 0:00:29]} 21... Rxg3+ {[%clk 0:00:58.7]}
22. fxg3 {[%clk 0:00:29.9]} 22... Qxg3+ {[%clk 0:00:56.8]} 23. Kf1 {[%clk
0:00:30.4]} 23... Bxc4+ {[%clk 0:00:48.1]} 24. Rd3 {[%clk 0:00:23.6]} 24... Qg2+
{[%clk 0:00:34.8]} 25. Ke1 {[%clk 0:00:23.5]} 25... Qh1+ {[%clk 0:00:26.9]} 26.
Ng1 {[%clk 0:00:03.7]} 26... Rxg1+ {[%clk 0:00:21]} 27. Ke2 {[%clk 0:00:01.9]}
27... Rg2+ {[%clk 0:00:19.8]} 28. Kf3 {[%clk 0:00:02.4]} 28... Qh3+ {[%clk
0:00:19.5]} 29. Ke4 {[%clk 0:00:01.6]} 29... Rg4+ {[%clk 0:00:16.7]} 30. Ke5
{[%clk 0:00:02.1]} 30... Qh5+ {[%clk 0:00:14]} 31. Kf6 {[%clk 0:00:02.5]} 31...
Qg6+ {[%clk 0:00:13.8]} 32. Ke7 {[%clk 0:00:02.5]} 32... Re4+ {[%clk 0:00:12.6]}
33. Qxe4 {[%clk 0:00:02.4]} 33... Qxe4+ {[%clk 0:00:12.3]} 34. Kf8 {[%clk
0:00:03.3]} 34... Bxd3 {[%clk 0:00:11.9]} 35. Rg1 {[%clk 0:00:02.7]} 35... Kd7
{[%clk 0:00:09.9]} 36. Rg7 {[%clk 0:00:02.7]} 36... Qe7+ {[%clk 0:00:09.7]} 37.
Kg8 {[%clk 0:00:02.8]} 37... Qe8# {[%clk 0:00:09.9]} 0-1

[Event "*** SCC Grand Prix: Titled Tuesday Blitz"]
[Site "Chess.com"]
[Date "2020.06.09"]
[Round "6"]
[White "Kapitan_Bayan"]
[Black "szefru"]
[Result "1-0"]
[WhiteElo "2340"]
[BlackElo "2140"]
[TimeControl "180+1"]
[EndTime "10:06:54 PDT"]
[Termination "Kapitan_Bayan won by resignation"]

1. d4 {[%clk 0:03:00.9]} 1... d5 {[%clk 0:02:55.1]} 2. Nf3 {[%clk 0:03:00.9]}
2... c6 {[%clk 0:02:54.9]} 3. c4 {[%clk 0:03:00.9]} 3... Nf6 {[%clk 0:02:55.4]}
4. cxd5 {[%clk 0:03:01.1]} 4... cxd5 {[%clk 0:02:55.5]} 5. Nc3 {[%clk 0:03:02]}
5... e6 {[%clk 0:02:55.7]} 6. Bf4 {[%clk 0:03:02.5]} 6... Nc6 {[%clk 0:02:56.3]}
7. e3 {[%clk 0:03:03]} 7... Be7 {[%clk 0:02:56.8]} 8. Bd3 {[%clk 0:03:02.7]}
8... O-O {[%clk 0:02:57.1]} 9. h3 {[%clk 0:03:03.1]} 9... a6 {[%clk 0:02:56.3]}
10. Rc1 {[%clk 0:03:03.2]} 10... Ne8 {[%clk 0:02:55.5]} 11. O-O {[%clk
0:03:02.6]} 11... f5 {[%clk 0:02:55.4]} 12. a3 {[%clk 0:02:59]} 12... Nf6 {[%clk
0:02:54.9]} 13. b4 {[%clk 0:02:59.2]} 13... Ne4 {[%clk 0:02:54.2]} 14. Ne5
{[%clk 0:02:47.4]} 14... g5 {[%clk 0:02:44.7]} 15. Nxc6 {[%clk 0:02:40.3]} 15...
bxc6 {[%clk 0:02:43.2]} 16. Be5 {[%clk 0:02:40.8]} 16... Bd6 {[%clk 0:02:36.5]}
17. f4 {[%clk 0:02:30.9]} 17... gxf4 {[%clk 0:02:31.7]} 18. exf4 {[%clk
0:02:25.7]} 18... Bxe5 {[%clk 0:02:29.3]} 19. fxe5 {[%clk 0:02:17.8]} 19... Qg5
{[%clk 0:02:16.2]} 20. Bxe4 {[%clk 0:01:50.2]} 20... dxe4 {[%clk 0:02:07.6]} 21.
Ne2 {[%clk 0:01:46.8]} 21... Bb7 {[%clk 0:02:01.1]} 22. Nf4 {[%clk 0:01:46.3]}
22... Rfe8 {[%clk 0:01:50.8]} 23. Qb3 {[%clk 0:01:46.3]} 23... Kf7 {[%clk
0:01:48.3]} 24. Rc3 {[%clk 0:01:34.5]} 24... Rad8 {[%clk 0:01:34.4]} 25. Kh2
{[%clk 0:01:22.1]} 25... Rxd4 {[%clk 0:01:19.1]} 26. Rg3 {[%clk 0:01:22.4]}
26... Qe7 {[%clk 0:01:14.1]} 27. Nxe6 {[%clk 0:01:04.4]} 27... Qxe6 {[%clk
0:01:10.6]} 28. Rxf5+ {[%clk 0:01:04.8]} 28... Ke7 {[%clk 0:01:06.3]} 29. Rg7+
{[%clk 0:01:05.2]} 29... Kd8 {[%clk 0:01:05.5]} 30. Qxe6 {[%clk 0:01:05.5]}
30... Rxe6 {[%clk 0:01:05.1]} 31. Rxb7 {[%clk 0:01:06]} 31... e3 {[%clk
0:00:47.9]} 32. Rf8+ {[%clk 0:00:53.6]} 32... Re8 {[%clk 0:00:46.6]} 33. Rb8+
{[%clk 0:00:53.6]} 33... Kc7 {[%clk 0:00:44.4]} 34. Rfxe8 {[%clk 0:00:25.9]}
34... e2 {[%clk 0:00:39]} 35. Rec8+ {[%clk 0:00:25.9]} 35... Kd7 {[%clk
0:00:39]} 36. e6+ {[%clk 0:00:26]} 36... Ke7 {[%clk 0:00:36.1]} 37. Re8+ {[%clk
0:00:21.5]} 37... Kf6 {[%clk 0:00:35.7]} 38. Rf8+ {[%clk 0:00:21.5]} 38... Ke5
{[%clk 0:00:35.5]} 39. e7 {[%clk 0:00:20.8]} 39... Kd5 {[%clk 0:00:15.6]} 40.
e8=Q {[%clk 0:00:20.6]} 1-0

[Event "*** SCC Grand Prix: Titled Tuesday Blitz"]
[Site "Chess.com"]
[Date "2020.06.09"]
[Round "6"]
[White "anon569"]
[Black "Fh2411"]
[Result "0-1"]
[WhiteElo "2299"]
[BlackElo "2436"]
[TimeControl "180+1"]
[EndTime "10:06:59 PDT"]
[Termination "Fh2411 won on time"]

1. e4 {[%clk 0:03:00.9]} 1... c5 {[%clk 0:02:58.4]} 2. Nf3 {[%clk 0:03:00.5]}
2... e6 {[%clk 0:02:53]} 3. d4 {[%clk 0:02:57.8]} 3... cxd4 {[%clk 0:02:53.9]}
4. Nxd4 {[%clk 0:02:55.4]} 4... a6 {[%clk 0:02:53.2]} 5. Bd3 {[%clk 0:02:53.6]}
5... d6 {[%clk 0:02:45.4]} 6. Qe2 {[%clk 0:02:48.7]} 6... Nf6 {[%clk 0:02:41.8]}
7. O-O {[%clk 0:02:43.9]} 7... Be7 {[%clk 0:02:41.3]} 8. c4 {[%clk 0:02:42.3]}
8... O-O {[%clk 0:02:40.6]} 9. Nc3 {[%clk 0:02:41.1]} 9... e5 {[%clk 0:02:35.8]}
10. Nf3 {[%clk 0:02:32]} 10... Nc6 {[%clk 0:02:33.2]} 11. h3 {[%clk 0:02:24.4]}
11... Be6 {[%clk 0:02:29.5]} 12. Be3 {[%clk 0:02:23]} 12... Rc8 {[%clk
0:02:27.8]} 13. b3 {[%clk 0:02:09.6]} 13... Nb4 {[%clk 0:02:21.1]} 14. Bb1
{[%clk 0:02:08.5]} 14... a5 {[%clk 0:01:45.9]} 15. a3 {[%clk 0:01:59.5]} 15...
Na6 {[%clk 0:01:45.6]} 16. Bc2 {[%clk 0:01:49.2]} 16... Nd7 {[%clk 0:01:43.3]}
17. Rfd1 {[%clk 0:01:44.6]} 17... Ndc5 {[%clk 0:01:32.8]} 18. Rab1 {[%clk
0:01:34.7]} 18... Nd7 {[%clk 0:01:13.1]} 19. Nb5 {[%clk 0:01:22.3]} 19... Rc6
{[%clk 0:01:12.5]} 20. Rd2 {[%clk 0:01:09.2]} 20... a4 {[%clk 0:01:07.6]} 21.
Rbd1 {[%clk 0:01:02.8]} 21... axb3 {[%clk 0:01:06.1]} 22. Bxb3 {[%clk
0:01:02.7]} 22... Nac5 {[%clk 0:00:59.4]} 23. Bc2 {[%clk 0:00:55]} 23... Qb8
{[%clk 0:00:54.9]} 24. Nc3 {[%clk 0:00:40]} 24... Ra6 {[%clk 0:00:50.6]} 25. Ra1
{[%clk 0:00:29.5]} 25... h6 {[%clk 0:00:40.2]} 26. Rdd1 {[%clk 0:00:15.2]} 26...
Bd8 {[%clk 0:00:39.2]} 27. Nd5 {[%clk 0:00:14]} 27... Kh8 {[%clk 0:00:25.7]} 28.
Nd2 {[%clk 0:00:13.4]} 28... Qa8 {[%clk 0:00:25]} 29. Nb1 {[%clk 0:00:07]} 29...
Bxd5 {[%clk 0:00:15.9]} 30. cxd5 {[%clk 0:00:05.5]} 30... Bb6 {[%clk 0:00:15.6]}
31. Bc1 {[%clk 0:00:03.6]} 31... Na4 {[%clk 0:00:14.8]} 32. Qf3 {[%clk
0:00:01.9]} 32... Bd4 {[%clk 0:00:14.5]} 0-1

[Event "*** SCC Grand Prix: Titled Tuesday Blitz"]
[Site "Chess.com"]
[Date "2020.06.09"]
[Round "6"]
[White "queen_iryna"]
[Black "profofchess"]
[Result "0-1"]
[WhiteElo "2320"]
[BlackElo "2450"]
[TimeControl "180+1"]
[EndTime "10:07:00 PDT"]
[Termination "profofchess won by checkmate"]

1. d4 {[%clk 0:03:00.9]} 1... Nf6 {[%clk 0:02:59.5]} 2. Bg5 {[%clk 0:02:59.5]}
2... Ne4 {[%clk 0:02:59.4]} 3. Bf4 {[%clk 0:02:59.4]} 3... Nc6 {[%clk
0:02:59.9]} 4. f3 {[%clk 0:02:57.8]} 4... Nf6 {[%clk 0:02:59.1]} 5. e4 {[%clk
0:02:56.6]} 5... e6 {[%clk 0:02:59.2]} 6. Nc3 {[%clk 0:02:54.1]} 6... d5 {[%clk
0:02:58.2]} 7. e5 {[%clk 0:02:49.5]} 7... Ng8 {[%clk 0:02:41.5]} 8. Be3 {[%clk
0:02:34.6]} 8... Bb4 {[%clk 0:02:40.2]} 9. f4 {[%clk 0:02:33.1]} 9... Nh6 {[%clk
0:02:39.1]} 10. Bd3 {[%clk 0:02:30.4]} 10... Na5 {[%clk 0:02:23.2]} 11. Nf3
{[%clk 0:02:15]} 11... Nc4 {[%clk 0:02:05.5]} 12. Bxc4 {[%clk 0:02:12.6]} 12...
dxc4 {[%clk 0:02:06.4]} 13. O-O {[%clk 0:02:11.1]} 13... Bxc3 {[%clk 0:02:03.5]}
14. bxc3 {[%clk 0:02:10.5]} 14... Nf5 {[%clk 0:02:01.7]} 15. Bf2 {[%clk
0:02:06.8]} 15... h5 {[%clk 0:02:00.4]} 16. Qe2 {[%clk 0:02:05.7]} 16... Qd5
{[%clk 0:01:59.6]} 17. Nh4 {[%clk 0:01:50.7]} 17... g6 {[%clk 0:01:50.6]} 18.
Nxf5 {[%clk 0:01:44.8]} 18... gxf5 {[%clk 0:01:51.5]} 19. Bh4 {[%clk 0:01:44.5]}
19... Bd7 {[%clk 0:01:44]} 20. Qf3 {[%clk 0:01:33.4]} 20... Bc6 {[%clk
0:01:33.8]} 21. Qxd5 {[%clk 0:01:32.9]} 21... Bxd5 {[%clk 0:01:34.7]} 22. Bg5
{[%clk 0:01:23.8]} 22... Be4 {[%clk 0:01:32]} 23. Rf2 {[%clk 0:01:16.4]} 23...
Kd7 {[%clk 0:01:29.9]} 24. h4 {[%clk 0:01:16.2]} 24... b5 {[%clk 0:01:23.9]} 25.
Kf1 {[%clk 0:01:15.4]} 25... a5 {[%clk 0:01:22.9]} 26. Ke1 {[%clk 0:01:14.5]}
26... b4 {[%clk 0:01:21.7]} 27. Kd2 {[%clk 0:01:12.8]} 27... Rhb8 {[%clk
0:01:15.8]} 28. g3 {[%clk 0:01:04.9]} 28... b3 {[%clk 0:01:12.2]} 29. cxb3
{[%clk 0:00:58.9]} 29... cxb3 {[%clk 0:01:13.1]} 30. axb3 {[%clk 0:00:59.2]}
30... Rxb3 {[%clk 0:01:13.8]} 31. Ra2 {[%clk 0:00:45.9]} 31... Rab8 {[%clk
0:01:06.9]} 32. Rxa5 {[%clk 0:00:40.9]} 32... Rb1 {[%clk 0:00:53.4]} 33. Ra2
{[%clk 0:00:31.2]} 33... Rg1 {[%clk 0:00:42.6]} 34. c4 {[%clk 0:00:20]} 34...
Rb3 {[%clk 0:00:30.6]} 35. Re2 {[%clk 0:00:11.7]} 35... Rgxg3 {[%clk 0:00:27.3]}
36. Ke1 {[%clk 0:00:11.9]} 36... Rg1+ {[%clk 0:00:23.5]} 37. Kf2 {[%clk
0:00:11.8]} 37... Rh1 {[%clk 0:00:23.5]} 38. Reb2 {[%clk 0:00:08.6]} 38... Rf3+
{[%clk 0:00:21.9]} 39. Ke2 {[%clk 0:00:08.3]} 39... Rh2+ {[%clk 0:00:21.2]} 40.
Ke1 {[%clk 0:00:08.3]} 40... Re3+ {[%clk 0:00:20.1]} 41. Kd1 {[%clk 0:00:06.6]}
41... Bf3+ {[%clk 0:00:18.9]} 42. Kc1 {[%clk 0:00:01.5]} 42... Re1# {[%clk
0:00:18.7]} 0-1